fUSD/lending_fUSD_20260512
["ID","MTS","AMOUNT","RATE_DAILY","PERIOD"]
[422080631,1778555450000,-1000.0,0.0004,30]
[422080636,1778555450000,-1000.0,0.0004,30]
[422080637,1778555450000,-1000.0,0.0004,30]
[422080632,1778555450000,-1000.0,0.0004,30]
[422080635,1778555450000,-1000.0,0.0004,30]
[422080634,1778555450000,-1000.0,0.0004,30]
[422080638,1778555450000,-1000.0,0.0004,30]
[422080639,1778555450000,-1000.0,0.0004,30]
[422080641,1778555450000,-1000.0,0.0004,30]
[422080643,1778555450000,-1000.0,0.0004,30]
[422080644,1778555450000,-1000.0,0.0004,30]
[422080646,1778555450000,-2000.0,0.0004,120]
[422080645,1778555450000,-1000.0,0.0004,30]
[422080642,1778555450000,-978.95,0.0004,30]
[422080648,1778555450000,-596.0,0.0004,5]
[422080647,1778555450000,-1003.0,0.0004,5]
[422080600,1778555450000,-474.041222,0.00039891,7]
[422080620,1778555450000,-1000.0,0.0004,30]
[422080625,1778555450000,-1000.0,0.0004,30]
[422080626,1778555450000,-1000.0,0.0004,30]
[422080623,1778555450000,-1000.0,0.0004,30]
[422080624,1778555450000,-1000.0,0.0004,30]
[422080602,1778555450000,-474.041222,0.00039891,7]
[422080604,1778555450000,-151.58702464,0.000399,2]
[422080609,1778555450000,-393.85408388,0.00039995,120]
[422080608,1778555450000,-1000.0,0.00039948,120]
[422080606,1778555450000,-19234.67559057,0.000399,15]
[422080607,1778555450000,-1600.0,0.000399,14]
[422080611,1778555450000,-3050.84825275,0.00039999,2]
[422080610,1778555450000,-3108.1794,0.00039995,2]
[422080612,1778555450000,-1562.0,0.0004,30]
[422080605,1778555450000,-25000.0,0.000399,15]
[422080613,1778555450000,-1000.0,0.0004,30]
[422080615,1778555450000,-1000.0,0.0004,30]
[422080618,1778555450000,-1000.0,0.0004,30]
[422080627,1778555450000,-1000.0,0.0004,30]
[422080603,1778555450000,-25000.0,0.00039891,15]
[422080617,1778555450000,-1000.0,0.0004,30]
[422080628,1778555450000,-1000.0,0.0004,30]
[422080619,1778555450000,-1000.0,0.0004,30]
[422080622,1778555450000,-1000.0,0.0004,30]
[422080621,1778555450000,-1000.0,0.0004,30]
[422080614,1778555450000,-1000.0,0.0004,30]
[422080697,1778555451000,-500.0,0.0004,120]
[422080696,1778555451000,-500.0,0.0004,120]
[422080683,1778555451000,-1121.0,0.0004,30]
[422080684,1778555451000,-363.29400436,0.0004,15]
[422080682,1778555451000,-2533.49165214,0.0004,120]
[422080688,1778555451000,-10171.1740188,0.0004,120]
[422080680,1778555451000,-7963.07703878,0.0004,120]
[422080679,1778555451000,-338.27807028,0.0004,120]
[422080678,1778555451000,-365.3387325,0.0004,120]
[422080676,1778555451000,-18619.62939161,0.0004,120]
[422080699,1778555451000,-500.0,0.0004,120]
[422080681,1778555451000,-124998.74903876,0.0004,120]
[422080698,1778555451000,-500.0,0.0004,120]
[422080714,1778555451000,-178.99855138,0.00040124,120]
[422080691,1778555451000,-500.0,0.0004,120]
[422080702,1778555451000,-500.0,0.0004,120]
[422080690,1778555451000,-2048.39887577,0.0004,120]
[422080700,1778555451000,-500.0,0.0004,120]
[422080693,1778555451000,-500.0,0.0004,120]
[422080692,1778555451000,-500.0,0.0004,120]
[422080695,1778555451000,-500.0,0.0004,120]
[422080694,1778555451000,-500.0,0.0004,120]
[422080704,1778555451000,-5027.373871,0.0004,20]
[422080687,1778555451000,-202.30578908,0.0004,120]
[422080703,1778555451000,-218.15135435,0.0004,120]
[422080706,1778555451000,-5027.373871,0.0004,20]
[422080701,1778555451000,-500.0,0.0004,120]
[422080686,1778555451000,-246.78291632,0.0004,120]
[422080670,1778555451000,-1011.98071609,0.0004,7]
[422080677,1778555451000,-92039.68053962,0.0004,50]
[422080649,1778555451000,-12993.99,0.0004,120]
[422080650,1778555451000,-754.87,0.0004,120]
[422080651,1778555451000,-17572.47,0.0004,120]
[422080653,1778555451000,-816.71,0.0004,120]
[422080663,1778555451000,-170.0,0.0004,120]
[422080662,1778555451000,-586.71014189,0.0004,120]
[422080658,1778555451000,-152.0,0.0004,120]
[422080659,1778555451000,-318.39,0.0004,120]
[422080656,1778555451000,-161.0,0.0004,120]
[422080655,1778555451000,-400.89,0.0004,120]
[422080657,1778555451000,-363.512,0.0004,120]
[422080661,1778555451000,-4225.97217498,0.0004,120]
[422080652,1778555451000,-213.22,0.0004,120]
[422080654,1778555451000,-22500.0,0.0004,120]
[422080660,1778555451000,-207.12,0.0004,120]
[422080664,1778555451000,-435.90497554,0.0004,7]
[422080667,1778555451000,-1778.28255896,0.0004,120]
[422080707,1778555451000,-5027.373871,0.0004,20]
[422080671,1778555451000,-322341.6683769,0.0004,30]
[422080668,1778555451000,-5101.86705403,0.0004,120]
[422080675,1778555451000,-222.92849978,0.0004,120]
[422080672,1778555451000,-898.98306531,0.0004,120]
[422080665,1778555451000,-22697.64920365,0.0004,120]
[422080669,1778555451000,-152.28168079,0.0004,60]
[422080666,1778555451000,-372.72,0.0004,2]
[422080674,1778555451000,-459.64163305,0.0004,120]
[422080673,1778555451000,-166.2627477,0.0004,30]
[422080685,1778555451000,-3000.0,0.0004,7]
[422080710,1778555451000,-717.3645631,0.00040076,2]
[422080689,1778555451000,-74701.3283143,0.0004,30]
[422080708,1778555451000,-150.231904,0.0004,120]
[422080750,1778555451000,-1562.0,0.00040548,30]
[422080746,1778555451000,-5343.4579594,0.000405,120]
[422080743,1778555451000,-40238.91504083,0.000405,120]
[422080749,1778555451000,-1672.7364795,0.00040547,30]
[422080748,1778555451000,-1734.62772924,0.00040546,30]
[422080744,1778555451000,-176.74483828,0.000405,120]
[422080747,1778555451000,-1798.80895522,0.00040545,30]
[422080742,1778555451000,-191.59570719,0.000405,120]
[422080745,1778555451000,-170.6704131,0.000405,60]
[422080762,1778555451000,-2159.56,0.00040685,7]
[422080752,1778555451000,-271.94,0.00040572,10]
[422080751,1778555451000,-7216.0,0.00040564,120]
[422080755,1778555451000,-2604.65,0.000406,14]
[422080741,1778555451000,-732.62596944,0.000405,120]
[422080757,1778555451000,-261.48547088,0.000406,20]
[422080754,1778555451000,-268.7,0.0004059,120]
[422080753,1778555451000,-254.52,0.00040572,10]
[422080756,1778555451000,-161.0,0.000406,120]
[422080760,1778555451000,-1444.0,0.00040658,120]
[422080758,1778555451000,-1600.0,0.000406,14]
[422080759,1778555451000,-318.45343967,0.00040627,120]
[422080763,1778555451000,-1600.0,0.000407,14]
[422080765,1778555451000,-3822.63757246,0.00040744,7]
[422080766,1778555451000,-3822.63757246,0.00040744,7]
[422080767,1778555451000,-3822.63757246,0.00040744,7]
[422080764,1778555451000,-3989.38,0.00040741,120]
[422080769,1778555451000,-3822.63757246,0.00040744,7]
[422080713,1778555451000,-195.84177592,0.000401,30]
[422080761,1778555451000,-2159.57,0.00040685,7]
[422080740,1778555451000,-33871.5060622,0.000405,120]
[422080768,1778555451000,-3822.63757246,0.00040744,7]
[422080739,1778555451000,-12404.93,0.000405,120]
[422080738,1778555451000,-2000.0,0.000405,120]
[422080709,1778555451000,-2987.6011,0.00040063,30]
[422080711,1778555451000,-3989.38,0.00040091,120]
[422080712,1778555451000,-2031.5262915,0.000401,120]
[422080715,1778555451000,-150.11,0.0004013,120]
[422080716,1778555451000,-3108.1794,0.00040132,2]
[422080718,1778555451000,-6002.44267792,0.00040183,12]
[422080720,1778555451000,-6002.44267792,0.00040183,12]
[422080719,1778555451000,-6002.44267792,0.00040183,12]
[422080721,1778555451000,-6002.44267792,0.00040183,12]
[422080717,1778555451000,-354.26605279,0.00040165,9]
[422080725,1778555451000,-1562.0,0.00040274,30]
[422080724,1778555451000,-3108.1803,0.00040269,2]
[422080722,1778555451000,-6002.44267792,0.00040183,12]
[422080705,1778555451000,-5027.373871,0.0004,20]
[422080726,1778555451000,-322.10911675,0.0004029,7]
[422080723,1778555451000,-6002.44267792,0.00040183,12]
[422080733,1778555451000,-451815.99413646,0.000403,120]
[422080736,1778555451000,-3989.38,0.00040416,120]
[422080734,1778555451000,-500.0,0.0004031,30]
[422080731,1778555451000,-1125.3,0.0004029,60]
[422080732,1778555451000,-193.03,0.000403,17]
[422080728,1778555451000,-347.78,0.0004029,60]
[422080730,1778555451000,-185.26,0.0004029,60]
[422080729,1778555451000,-923.92,0.0004029,60]
[422080735,1778555451000,-22500.0,0.00040375,120]
[422080737,1778555451000,-1483.54939322,0.00040477,120]
[422080727,1778555451000,-190.16,0.0004029,60]
[422080803,1778555452000,-347.517931,0.000408,30]
[422080811,1778555452000,-691.0,0.000408,30]
[422080801,1778555452000,-151.0,0.000408,30]
[422080804,1778555452000,-347.517931,0.000408,30]
[422080802,1778555452000,-1000.0,0.000408,30]
[422080809,1778555452000,-5027.373871,0.000408,20]
[422080810,1778555452000,-5027.373871,0.000408,20]
[422080808,1778555452000,-347.517931,0.000408,30]
[422080805,1778555452000,-5027.373871,0.000408,20]
[422080820,1778555452000,-1483.29717748,0.00040883,12]
[422080807,1778555452000,-5027.373871,0.000408,20]
[422080806,1778555452000,-347.517931,0.000408,30]
[422080814,1778555452000,-152.0,0.00040811,30]
[422080816,1778555452000,-661.22182006,0.00040864,2]
[422080815,1778555452000,-1562.0,0.00040822,30]
[422080819,1778555452000,-152.0,0.00040877,30]
[422080812,1778555452000,-20261.4237959,0.000408,120]
[422080821,1778555452000,-148221.0293,0.000409,2]
[422080813,1778555452000,-152.0,0.00040811,30]
[422080818,1778555452000,-152.0,0.00040877,30]
[422080822,1778555452000,-1743.88245732,0.000409,30]
[422080823,1778555452000,-9550.17593192,0.000409,30]
[422080825,1778555452000,-5000.0,0.00040925,15]
[422080835,1778555452000,-151.0,0.0004095,30]
[422080826,1778555452000,-152.0,0.00040942,30]
[422080800,1778555452000,-309.0,0.000408,30]
[422080831,1778555452000,-474.041222,0.0004095,7]
[422080817,1778555452000,-503.0,0.00040872,19]
[422080797,1778555452000,-1136.281255,0.000408,28]
[422080784,1778555452000,-151.0,0.00040797,14]
[422080798,1778555452000,-1136.281255,0.000408,28]
[422080832,1778555452000,-151.0,0.0004095,30]
[422080771,1778555452000,-3822.63757246,0.00040744,7]
[422080774,1778555452000,-3822.63757246,0.00040744,7]
[422080773,1778555452000,-3822.63757246,0.00040744,7]
[422080770,1778555452000,-3822.63757246,0.00040744,7]
[422080772,1778555452000,-3822.63757246,0.00040744,7]
[422080776,1778555452000,-3822.63757246,0.00040744,7]
[422080777,1778555452000,-3822.63757246,0.00040744,7]
[422080775,1778555452000,-3822.63757246,0.00040744,7]
[422080779,1778555452000,-189.55,0.0004075,120]
[422080780,1778555452000,-324.45,0.0004075,120]
[422080781,1778555452000,-22500.0,0.0004075,120]
[422080783,1778555452000,-168.01130534,0.00040773,120]
[422080778,1778555452000,-2778.80355088,0.00040744,7]
[422080782,1778555452000,-661.22182006,0.00040756,2]
[422080785,1778555452000,-34772.02571038,0.000408,30]
[422080787,1778555452000,-151.000007,0.000408,30]
[422080788,1778555452000,-448.648598,0.000408,30]
[422080786,1778555452000,-448.648598,0.000408,30]
[422080789,1778555452000,-448.648598,0.000408,30]
[422080795,1778555452000,-151.0,0.000408,30]
[422080793,1778555452000,-151.0,0.000408,30]
[422080790,1778555452000,-448.648598,0.000408,30]
[422080792,1778555452000,-2065.0,0.000408,14]
[422080791,1778555452000,-151.0,0.000408,30]
[422080794,1778555452000,-151.0,0.000408,30]
[422080796,1778555452000,-1136.281255,0.000408,28]
[422080799,1778555452000,-1136.281255,0.000408,28]
[422080827,1778555452000,-296788.0,0.0004095,60]
[422080869,1778555452000,-448.648598,0.00041,30]
[422080830,1778555452000,-474.041222,0.0004095,7]
[422080865,1778555452000,-423.91373241,0.00041,120]
[422080874,1778555452000,-229.754449,0.00041,30]
[422080866,1778555452000,-7854.01291655,0.00041,120]
[422080870,1778555452000,-448.648598,0.00041,30]
[422080868,1778555452000,-448.648598,0.00041,30]
[422080873,1778555452000,-151.0,0.00041,30]
[422080863,1778555452000,-151.0,0.00041,30]
[422080867,1778555452000,-448.648598,0.00041,30]
[422080871,1778555452000,-151.0,0.00041,30]
[422080872,1778555452000,-151.0,0.00041,30]
[422080876,1778555452000,-1136.281255,0.00041,28]
[422080875,1778555452000,-1136.281255,0.00041,28]
[422080877,1778555452000,-1136.281255,0.00041,28]
[422080878,1778555452000,-1136.281255,0.00041,28]
[422080879,1778555452000,-151.0,0.00041,30]
[422080881,1778555452000,-347.517931,0.00041,30]
[422080880,1778555452000,-347.517931,0.00041,30]
[422080883,1778555452000,-347.517931,0.00041,30]
[422080885,1778555452000,-347.517931,0.00041,30]
[422080882,1778555452000,-5027.373871,0.00041,20]
[422080884,1778555452000,-5027.373871,0.00041,20]
[422080887,1778555452000,-5027.373871,0.00041,20]
[422080888,1778555452000,-1448.6,0.00041041,120]
[422080886,1778555452000,-5027.373871,0.00041,20]
[422080891,1778555452000,-659.0,0.00041065,5]
[422080889,1778555452000,-1000.0,0.00041048,120]
[422080834,1778555452000,-151.0,0.0004095,30]
[422080862,1778555452000,-50798.26577506,0.00041,90]
[422080864,1778555452000,-157.5714128,0.00041,30]
[422080890,1778555452000,-446.0,0.00041065,5]
[422080853,1778555452000,-1538019.56395409,0.00041,30]
[422080859,1778555452000,-151.0,0.00041,30]
[422080828,1778555452000,-474.041222,0.0004095,7]
[422080829,1778555452000,-474.041222,0.0004095,7]
[422080824,1778555452000,-3516.17773268,0.00040902,10]
[422080837,1778555452000,-151.0,0.0004095,30]
[422080848,1778555452000,-354.417954,0.00041,3]
[422080836,1778555452000,-151.0,0.0004095,30]
[422080842,1778555452000,-159.0,0.00040969,120]
[422080846,1778555452000,-1613.0535,0.00040999,30]
[422080840,1778555452000,-4849.44,0.00040955,2]
[422080839,1778555452000,-5580.54,0.00040951,2]
[422080847,1778555452000,-152.50547285,0.00040999,30]
[422080838,1778555452000,-203.5752014,0.0004095,10]
[422080843,1778555452000,-191.91529612,0.00040977,2]
[422080833,1778555452000,-151.0,0.0004095,30]
[422080841,1778555452000,-6002.44267792,0.00040969,13]
[422080844,1778555452000,-400.0,0.00040997,2]
[422080851,1778555452000,-5932.0,0.00041,30]
[422080852,1778555452000,-19011.1608719,0.00041,30]
[422080858,1778555452000,-5064.73009173,0.00041,120]
[422080849,1778555452000,-2000.0,0.00041,120]
[422080857,1778555452000,-167.74053321,0.00041,30]
[422080854,1778555452000,-189.764878,0.00041,30]
[422080856,1778555452000,-5931.0,0.00041,30]
[422080860,1778555452000,-151.0,0.00041,30]
[422080861,1778555452000,-248.91363602,0.00041,30]
[422080850,1778555452000,-2000.0,0.00041,120]
[422080845,1778555452000,-711.13005733,0.00040997,2]
[422080855,1778555452000,-21127.01527796,0.00041,30]
[422080927,1778555453000,-170.501813,0.00041096,120]
[422080933,1778555453000,-253.75218,0.00041096,120]
[422080928,1778555453000,-175.076766,0.00041096,120]
[422080934,1778555453000,-253.75218,0.00041096,120]
[422080925,1778555453000,-151.0,0.00041096,120]
[422080932,1778555453000,-180.900285,0.00041096,120]
[422080931,1778555453000,-188.43258,0.00041096,120]
[422080930,1778555453000,-156.766326,0.00041096,120]
[422080924,1778555453000,-1550.621872,0.00041096,120]
[422080935,1778555453000,-151.0,0.00041096,120]
[422080926,1778555453000,-151.0,0.00041096,120]
[422080929,1778555453000,-176.930175,0.00041096,120]
[422080936,1778555453000,-253.75218,0.00041096,120]
[422080942,1778555453000,-1727.359491,0.00041096,120]
[422080946,1778555453000,-159.760057,0.00041096,120]
[422080938,1778555453000,-160.910718,0.00041096,120]
[422080939,1778555453000,-1727.359491,0.00041096,120]
[422080944,1778555453000,-182.8389,0.00041096,120]
[422080940,1778555453000,-1727.359491,0.00041096,120]
[422080945,1778555453000,-159.760057,0.00041096,120]
[422080941,1778555453000,-1727.359491,0.00041096,120]
[422080943,1778555453000,-173.556983,0.00041096,120]
[422080948,1778555453000,-159.760057,0.00041096,120]
[422080958,1778555453000,-151.0,0.00041096,120]
[422080947,1778555453000,-159.760057,0.00041096,120]
[422080920,1778555453000,-152.696414,0.00041096,120]
[422080950,1778555453000,-159.760057,0.00041096,120]
[422080937,1778555453000,-253.75218,0.00041096,120]
[422080918,1778555453000,-255.202259,0.00041096,120]
[422080901,1778555453000,-193.0,0.00041096,60]
[422080923,1778555453000,-1550.621872,0.00041096,120]
[422080952,1778555453000,-159.760057,0.00041096,120]
[422080897,1778555453000,-500.0,0.00041096,30]
[422080894,1778555453000,-238.68223976,0.00041074,2]
[422080895,1778555453000,-16947.24131322,0.00041083,2]
[422080893,1778555453000,-165.11300457,0.00041074,2]
[422080892,1778555453000,-3989.38,0.00041066,120]
[422080896,1778555453000,-185.20389468,0.00041095,30]
[422080899,1778555453000,-298.52351853,0.00041096,30]
[422080909,1778555453000,-251.877461,0.00041096,120]
[422080898,1778555453000,-500.0,0.00041096,42]
[422080903,1778555453000,-151.0,0.00041096,120]
[422080906,1778555453000,-249.865869,0.00041096,120]
[422080900,1778555453000,-1562.0,0.00041096,120]
[422080917,1778555453000,-255.202259,0.00041096,120]
[422080904,1778555453000,-255.222005,0.00041096,120]
[422080905,1778555453000,-166.00706,0.00041096,120]
[422080902,1778555453000,-484.0,0.00041096,120]
[422080907,1778555453000,-156.815486,0.00041096,120]
[422080910,1778555453000,-165.344479,0.00041096,120]
[422080911,1778555453000,-166.191604,0.00041096,120]
[422080912,1778555453000,-319.65253,0.00041096,120]
[422080913,1778555453000,-319.65253,0.00041096,120]
[422080914,1778555453000,-319.65253,0.00041096,120]
[422080922,1778555453000,-1550.621872,0.00041096,120]
[422080921,1778555453000,-1550.621872,0.00041096,120]
[422080919,1778555453000,-255.202259,0.00041096,120]
[422080916,1778555453000,-255.202259,0.00041096,120]
[422080915,1778555453000,-319.65253,0.00041096,120]
[422080908,1778555453000,-151.0,0.00041096,120]
[422080949,1778555453000,-159.760057,0.00041096,120]
[422081002,1778555453000,-4976.925226,0.00041096,120]
[422080954,1778555453000,-195.024865,0.00041096,120]
[422080987,1778555453000,-3510.598437,0.00041096,120]
[422080995,1778555453000,-4976.925226,0.00041096,120]
[422080989,1778555453000,-4976.925226,0.00041096,120]
[422080996,1778555453000,-3510.598437,0.00041096,120]
[422080994,1778555453000,-4976.925226,0.00041096,120]
[422080992,1778555453000,-3510.598437,0.00041096,120]
[422080990,1778555453000,-3510.598437,0.00041096,120]
[422080988,1778555453000,-4976.925226,0.00041096,120]
[422080991,1778555453000,-4976.925226,0.00041096,120]
[422080993,1778555453000,-3510.598437,0.00041096,120]
[422081008,1778555453000,-151.0,0.00041096,120]
[422080998,1778555453000,-155.824373,0.00041096,120]
[422080997,1778555453000,-3510.598437,0.00041096,120]
[422080986,1778555453000,-4976.925226,0.00041096,120]
[422080999,1778555453000,-4976.925226,0.00041096,120]
[422081001,1778555453000,-4976.925226,0.00041096,120]
[422081009,1778555453000,-168.280279,0.00041096,120]
[422081005,1778555453000,-4976.925226,0.00041096,120]
[422081007,1778555453000,-4976.925226,0.00041096,120]
[422081006,1778555453000,-247.847447,0.00041096,120]
[422081000,1778555453000,-3510.598437,0.00041096,120]
[422081014,1778555453000,-151.0,0.00041096,7]
[422081003,1778555453000,-4976.925226,0.00041096,120]
[422081012,1778555453000,-151.0,0.00041096,7]
[422081013,1778555453000,-151.0,0.00041096,7]
[422081011,1778555453000,-182.824067,0.00041096,120]
[422081015,1778555453000,-151.0,0.00041096,7]
[422080953,1778555453000,-159.760057,0.00041096,120]
[422081004,1778555453000,-151.0,0.00041096,120]
[422080984,1778555453000,-3510.598437,0.00041096,120]
[422081010,1778555453000,-151.0,0.00041096,120]
[422080980,1778555453000,-179.960888,0.00041096,120]
[422080985,1778555453000,-3510.598437,0.00041096,120]
[422080951,1778555453000,-159.760057,0.00041096,120]
[422080956,1778555453000,-159.760057,0.00041096,120]
[422080955,1778555453000,-159.760057,0.00041096,120]
[422080959,1778555453000,-296.074529,0.00041096,120]
[422080962,1778555453000,-501.694731,0.00041096,120]
[422080970,1778555453000,-501.694731,0.00041096,120]
[422080966,1778555453000,-501.694731,0.00041096,120]
[422080960,1778555453000,-151.0,0.00041096,120]
[422080961,1778555453000,-164.540063,0.00041096,120]
[422080964,1778555453000,-501.694731,0.00041096,120]
[422080965,1778555453000,-173.920437,0.00041096,120]
[422080963,1778555453000,-151.0,0.00041096,120]
[422080969,1778555453000,-501.694731,0.00041096,120]
[422080957,1778555453000,-159.760057,0.00041096,120]
[422080968,1778555453000,-501.694731,0.00041096,120]
[422080967,1778555453000,-501.694731,0.00041096,120]
[422080979,1778555453000,-151.0,0.00041096,120]
[422080975,1778555453000,-501.694731,0.00041096,120]
[422080977,1778555453000,-293.273268,0.00041096,120]
[422080976,1778555453000,-151.0,0.00041096,120]
[422080978,1778555453000,-205.141724,0.00041096,120]
[422080982,1778555453000,-3510.598437,0.00041096,120]
[422080971,1778555453000,-501.694731,0.00041096,120]
[422080972,1778555453000,-501.694731,0.00041096,120]
[422080974,1778555453000,-501.694731,0.00041096,120]
[422080981,1778555453000,-3510.598437,0.00041096,120]
[422080983,1778555453000,-3510.598437,0.00041096,120]
[422080973,1778555453000,-501.694731,0.00041096,120]
[422081049,1778555454000,-402.845025,0.00041096,7]
[422081044,1778555454000,-402.845025,0.00041096,7]
[422081042,1778555454000,-334.558121,0.00041096,14]
[422081051,1778555454000,-402.845025,0.00041096,7]
[422081048,1778555454000,-402.845025,0.00041096,7]
[422081045,1778555454000,-402.845025,0.00041096,7]
[422081052,1778555454000,-1257.887749,0.00041096,30]
[422081054,1778555454000,-151.0,0.00041096,120]
[422081050,1778555454000,-402.845025,0.00041096,7]
[422081053,1778555454000,-1257.887749,0.00041096,30]
[422081046,1778555454000,-402.845025,0.00041096,7]
[422081069,1778555454000,-1359.434225,0.00041096,120]
[422081055,1778555454000,-163.20365,0.00041096,120]
[422081056,1778555454000,-1257.887749,0.00041096,30]
[422081047,1778555454000,-402.845025,0.00041096,7]
[422081059,1778555454000,-1257.887749,0.00041096,30]
[422081064,1778555454000,-151.0,0.00041096,120]
[422081068,1778555454000,-451.95924,0.00041096,120]
[422081060,1778555454000,-218.388227,0.00041096,120]
[422081065,1778555454000,-151.0,0.00041096,120]
[422081039,1778555454000,-334.558121,0.00041096,14]
[422081061,1778555454000,-1257.887749,0.00041096,30]
[422081057,1778555454000,-1257.887749,0.00041096,30]
[422081043,1778555454000,-334.558121,0.00041096,14]
[422081026,1778555454000,-3175.820433,0.00041096,120]
[422081037,1778555454000,-292.846108,0.00041096,120]
[422081058,1778555454000,-1257.887749,0.00041096,30]
[422081018,1778555454000,-151.0,0.00041096,7]
[422081022,1778555454000,-3175.820433,0.00041096,120]
[422081021,1778555454000,-3175.820433,0.00041096,120]
[422081019,1778555454000,-151.0,0.00041096,7]
[422081017,1778555454000,-151.0,0.00041096,7]
[422081016,1778555454000,-151.0,0.00041096,7]
[422081020,1778555454000,-151.0,0.00041096,7]
[422081024,1778555454000,-3175.820433,0.00041096,120]
[422081023,1778555454000,-3175.820433,0.00041096,120]
[422081025,1778555454000,-3175.820433,0.00041096,120]
[422081027,1778555454000,-3175.820433,0.00041096,120]
[422081029,1778555454000,-151.0,0.00041096,120]
[422081030,1778555454000,-151.0,0.00041096,120]
[422081032,1778555454000,-334.558121,0.00041096,14]
[422081028,1778555454000,-3175.820433,0.00041096,120]
[422081031,1778555454000,-334.558121,0.00041096,14]
[422081033,1778555454000,-151.0,0.00041096,120]
[422081034,1778555454000,-334.558121,0.00041096,14]
[422081036,1778555454000,-334.558121,0.00041096,14]
[422081035,1778555454000,-151.0,0.00041096,120]
[422081041,1778555454000,-151.0,0.00041096,120]
[422081040,1778555454000,-151.0,0.00041096,120]
[422081038,1778555454000,-334.558121,0.00041096,14]
[422081066,1778555454000,-451.95924,0.00041096,120]
[422081072,1778555454000,-167.88929574,0.00041096,120]
[422081067,1778555454000,-1359.434225,0.00041096,120]
[422081093,1778555454000,-159.32118637,0.000411,120]
[422081100,1778555454000,-159.32118637,0.000411,120]
[422081101,1778555454000,-159.32118637,0.000411,120]
[422081099,1778555454000,-159.32118637,0.000411,120]
[422081098,1778555454000,-159.32118637,0.000411,120]
[422081102,1778555454000,-159.32118637,0.000411,120]
[422081104,1778555454000,-159.32,0.000411,120]
[422081103,1778555454000,-159.32118637,0.000411,120]
[422081107,1778555454000,-20796.97491145,0.00041111,120]
[422081105,1778555454000,-152.0,0.00041107,120]
[422081096,1778555454000,-159.32118637,0.000411,120]
[422081111,1778555454000,-900.0,0.00041123,30]
[422081109,1778555454000,-900.0,0.00041123,30]
[422081110,1778555454000,-900.0,0.00041123,30]
[422081108,1778555454000,-7609.19,0.00041114,2]
[422081113,1778555454000,-900.0,0.00041123,30]
[422081114,1778555454000,-900.0,0.00041123,30]
[422081118,1778555454000,-900.0,0.00041123,30]
[422081116,1778555454000,-900.0,0.00041123,30]
[422081117,1778555454000,-900.0,0.00041123,30]
[422081115,1778555454000,-900.0,0.00041123,30]
[422081062,1778555454000,-214.93337,0.00041096,120]
[422081112,1778555454000,-900.0,0.00041123,30]
[422081097,1778555454000,-159.32118637,0.000411,120]
[422081106,1778555454000,-242.73254772,0.00041108,120]
[422081094,1778555454000,-159.32118637,0.000411,120]
[422081063,1778555454000,-1257.887749,0.00041096,30]
[422081095,1778555454000,-159.32118637,0.000411,120]
[422081071,1778555454000,-167.88929574,0.00041096,60]
[422081070,1778555454000,-151.0,0.00041096,120]
[422081074,1778555454000,-161.0,0.000411,120]
[422081075,1778555454000,-283.01,0.000411,120]
[422081076,1778555454000,-151.73446321,0.000411,120]
[422081073,1778555454000,-193.85052234,0.00041096,120]
[422081079,1778555454000,-151.73446321,0.000411,120]
[422081078,1778555454000,-151.73446321,0.000411,120]
[422081080,1778555454000,-151.73446321,0.000411,120]